Cogmind - Beta 9.6 @@@ ROGUE MODE // 2020.09.03 @ 19:44:50 Player: scoobysnack1 Result: Smashed by cave-in Performance ------------- Evolutions (0) 0 Regions Visited (3) 600 Robots Destroyed (41) 205 Value Destroyed (677) 677 Prototype IDs (6) 120 Alien Tech Used (0) 0 Bonus (0) 0 TOTAL SCORE: 1602 Bonus ------- None Cogmind --------- Core Integrity 0/250 Matter 290/300 Energy 124/125 System Corruption 5% Temperature Cool (0) Movement Rolling (90) Ox1 Location -10/Exiles Parts ------- > --- POWER (1) -------- Light Ion Engine > --- PROPULSION (2) --- Wheel > --- UTILITY (2) ------ Large Storage Unit Makeshift System Shield > --- WEAPON (2) ------- (None) > --- INVENTORY (10) --- Ion Engine Ion Engine Medium Armor Plating EM Pulse Gun EM Pulse Gun Light Assault Rifle Light Cannon Peak State ------------ > --- POWER ------------ Ion Engine > --- PROPULSION ------- Light Treads > --- UTILITY ---------- Medium Storage Unit Medium Armor Plating > --- WEAPON ----------- EM Pulse Gun Beamcaster > --- INVENTORY -------- Ion Engine Ion Engine Medium Armor Plating EM Pulse Gun EM Pulse Gun EM Pulse Gun Light Cannon Mining Laser [Rating: 11] Favorites ----------- Power Ion Engine Engine Ion Engine Propulsion Light Treads Treads Light Treads Wheel Wheel Flight Unit Flight Unit Utility Medium Storage Unit Device Heat Sink Storage Medium Storage Unit Processor Transport Network Coupler Hackware Makeshift System Shield Protection Medium Armor Plating Weapon EM Pulse Gun Energy Gun EM Pulse Gun Ballistic Gun Light Assault Rifle Ballistic Cannon Light Cannon Special Weapon Mining Laser Build | -11 -10 -10 -10 ------- Run | Scr Mat Min Exi Slots Evolved . | . . . . Power . | . . . . Propulsion . | . . . . Utility . | . . . . Weapon . | . . . . Parts Attached 34 | 6 17 9 2 Power 4 | 1 2 1 . Engine 4 | 1 2 1 . Core . | . . . . Reactor . | . . . . Propulsion 9 | 2 4 3 . Treads 6 | 2 4 . . Leg . | . . . . Wheel 1 | . . 1 . Hover . | . . . . Flight 2 | . . 2 . Utility 9 | 1 5 2 1 Device 1 | . 1 . . Storage 3 | 1 1 1 . Processor 1 | . 1 . . Hackware 1 | . . . 1 Protection 3 | . 2 1 . Artifact . | . . . . Weapon 12 | 2 6 3 1 Energy Gun 6 | . 4 2 . Energy Cannon . | . . . . Ballistic Gun 3 | 2 . 1 . Ballistic Cannon 2 | . 2 . . Launcher . | . . . . Special Weapon 1 | . . . 1 Impact Weapon . | . . . . Slashing Weapon . | . . . . Piercing Weapon . | . . . . Special Melee Weapon . | . . . . Unidentified Prototypes . | . . . . Parts Lost 7 | . . 5 2 Power 1 | . . 1 . Propulsion 2 | . . 2 . Utility . | . . . . Weapon 4 | . . 2 2 Highest Loss Streak 4 | . . 4 2 Average Slot Usage (%) 89 | . 96 84 85 Engine 12 | . 14 10 14 Treads 17 | . 27 12 . Wheel 2 | . . 2 14 Flight 1 | . . 2 . Storage 14 | . 14 14 14 Hackware 1 | . . . 9 Protection 10 | . 9 14 4 Energy Gun 19 | . 17 23 14 Ballistic Gun 4 | . 3 3 12 Ballistic Cannon 2 | . 6 . . Naked Turns . | . . . . Heaviest Build 35 | 10 24 35 23 Greatest Support 40 | 40 40 40 10 Greatest Overweight (x) 6 | . 1 6 2 Average Overweight (x) . | . . . 2 Largest Inventory Capacity 10 | 6 8 10 10 Average Capacity 8 | 5 7 9 10 Most Carried 8 | 2 8 8 7 Average Carried 6 | . 6 7 7 Final Capacity 10 | 6 8 10 10 Final Carried 8 | 2 8 7 7 Class Distribution -------------------- 100% | Mutant Dominant Class ---------------- Mutant | -10/Materials Mutant | -10/Mines Mutant | -10/Exiles Resources | -11 -10 -10 -10 ----------- Run | Scr Mat Min Exi Matter Collected 718 | 257 366 95 . Remotely . | . . . . Salvage Created 1171 | 67 883 221 . Parts 72 | . 50 22 . Haulers Intercepted 2 | . 2 . . Recyclers Shooed . | . . . . Parts Field Recycled . | . . . . Retrieved Matter . | . . . . Parts Self-Destructed . | . . . . Prevented . | . . . . Kills | -11 -10 -10 -10 ------- Run | Scr Mat Min Exi Combat Hostiles Destroyed 27 | . 15 12 . Guns 20 | . 9 11 . Cannons 6 | . 6 . . AOE 1 | . . 1 . Classes Destroyed 9 | 1 7 1 . Worker 1 | . . 1 . Builder 1 | . 1 . . Tunneler 2 | . 2 . . Hauler 2 | . 2 . . Recycler 4 | 1 3 . . Operator 1 | . 1 . . Watcher 3 | . 3 . . Swarmer 18 | . 6 12 . Grunt 9 | . 9 . . Best Kill Streak 8 | 1 8 3 . Combat Bots Only 5 | . 5 3 . Max Kills in Single Turn 2 | 1 2 1 . Gunslinging . | . . . . Exploded 1 | . . 1 . Melee . | . . . . Uniques/NPCs Destroyed . | . . . . Combat | -11 -10 -10 -10 -------- Run | Scr Mat Min Exi Damage Taken 1403 | . 552 454 397 Core 275 | . 26 108 141 Absorbed by Shields . | . . . . Core Remaining (%) 100 | 100 . . . Volleys Fired 106 | 3 65 32 6 Largest 2 | 1 2 2 1 Hottest 115 | 20 80 115 100 Shots Fired 193 | 3 130 54 6 Gun 146 | 3 89 54 . Cannon 41 | . 41 . . Launcher . | . . . . Special 6 | . . . 6 Kinetic 60 | 3 57 . . Thermal 36 | . 16 14 6 Explosive . | . . . . Electromagnetic 97 | . 57 40 . Robot Hit Streak 11 | 2 11 4 . Robot Miss Streak 4 | 1 4 4 . Penetration Max . | . . . . Secondary Targets 3 | . 2 1 . Max Gunslinging Chain 1 | . 1 1 . Shots Hit Robots 105 | 2 77 26 . Core Hits 49 | 2 34 13 . Critical Hits 1 | . 1 . . Critical Kills 1 | . 1 . . Critical Parts Destroyed . | . . . . Melee Attacks . | . . . . Impact . | . . . . Slashing . | . . . . Piercing . | . . . . Sneak Attacks . | . . . . Combat Hostiles . | . . . . Follow-up Attacks . | . . . . Damage Inflicted 1436 | 18 1004 414 . Guns 1002 | 18 649 335 . Cannons 345 | . 345 . . Explosions 57 | . . 57 . Melee . | . . . . Ramming 32 | . 10 22 . Kinetic 529 | 18 511 . . Thermal 309 | . 123 186 . Explosive . | . . . . Electromagnetic 566 | . 360 206 . Impact . | . . . . Slashing . | . . . . Piercing . | . . . . Highest Corruption . | . . . . Average Corruption . | . . . . Corruption Purged . | . . . . Overload Shots . | . . . . Overflow Damage . | . . . . Projectiles . | . . . . Explosions . | . . . . Melee . | . . . . Knockbacks 3 | . 3 . . Impact . | . . . . Kinetic 3 | . 3 . . Secondary . | . . . . Self-Inflicted Damage . | . . . . Shots . | . . . . Rammed 12 | . 3 9 . Targets Rammed 13 | . 4 9 . Kicked . | . . . . Crushed 1 | . 1 . . Highest Temperature 272 | . 249 272 60 Average Temperature 77 | . 73 95 28 Received Heat Transfer 162 | . 162 . . Effects 2 | . . 2 . Energy Bleed 1 | . . 1 . Interference 1 | . . 1 . Siege Activations . | . . . . Robots Corrupted . | . . . . Combat Hostiles . | . . . . Parts Fried 7 | . 7 . . Impact Corruptions . | . . . . Robots Melted . | . . . . Combat Hostiles . | . . . . Parts Melted 1 | . . 1 . Heat Transferred 692 | . 370 322 . Parts Sabotaged . | . . . . Parts Stolen . | . . . . Parts Stripped . | . . . . Power Chain Reactions 1 | . . 1 . Missiles Intercepted . | . . . . Alert | -11 -10 -10 -10 ------- Run | Scr Mat Min Exi Peak Influence 315 | 5 224 315 . Average Influence 105 | 3 114 104 . Maximum Alert Level 1 | . 1 1 . Low Security (%) 79 | 100 70 86 . Level 1 20 | . 29 13 . Level 2 . | . . . . Level 3 . | . . . . Level 4 . | . . . . Level 5 . | . . . . High Security . | . . . . Max Security . | . . . . Squads Dispatched 1 | . 1 . . Investigation 1 | . 1 . . Extermination . | . . . . Reinforcement . | . . . . Assault . | . . . . Garrison . | . . . . Intercept . | . . . . Construction Impeded . | . . . . Haulers Reinforced . | . . . . Stealth | -11 -10 -10 -10 --------- Run | Scr Mat Min Exi Distress Signals 2 | . 2 . . Communications Jammed . | . . . . Distress Signals . | . . . . Times Spotted 36 | . 22 14 . Peak Tracking Total 4 | . 4 3 . Tactical Retreats 1 | . . 1 . Traps | -11 -10 -10 -10 ------- Run | Scr Mat Min Exi Traps Triggered 2 | . 2 . . Indirectly . | . . . . Trap Hack Attempts . | . . . . Triggered . | . . . . Disarmed . | . . . . Reprogrammed . | . . . . Reused . | . . . . Traps Extracted . | . . . . Installed . | . . . . Triggered . | . . . . Machines | -11 -10 -10 -10 ---------- Run | Scr Mat Min Exi Machines Disabled 4 | . 1 3 . Max in Single Turn 1 | . 1 1 . Machines Sabotaged . | . . . . Garrisons Compromised . | . . . . Overloaded Fab Kills . | . . . . Fab Network Shutdowns . | . . . . Hacking | -11 -10 -10 -10 --------- Run | Scr Mat Min Exi Machines Accessed 5 | . 4 . 1 Terminals 4 | . 4 . . Fabricators . | . . . . Repair Stations . | . . . . Recycling Units . | . . . . Scanalyzers . | . . . . Garrison Access . | . . . . Total Hacks 13 | . 11 . 2 Successful 8 | . 6 . 2 Failed 5 | . 5 . . Catastrophic . | . . . . Database Lockouts . | . . . . Manual 6 | . 6 . . Terminals 11 | . 11 . . Fabricators . | . . . . Repair Stations . | . . . . Recycling Units . | . . . . Scanalyzers . | . . . . Garrison Access . | . . . . Terminal Hacks 8 | . 6 . 2 Record 2 | . . . 2 Prototype ID Bank 4 | . 4 . . Branch Access Points 1 | . 1 . . Hauler Manifests 1 | . 1 . . Fabricator Hacks . | . . . . Repair Station Hacks . | . . . . Recycling Unit Hacks . | . . . . Scanalyzer . | . . . . Garrison Access Hacks . | . . . . Unauthorized Hacks . | . . . . Terminals . | . . . . Fabricators . | . . . . Repair Stations . | . . . . Recycling Units . | . . . . Scanalyzers . | . . . . Garrison Access . | . . . . Data Cores Recovered 1 | . 1 . . Used . | . . . . Hacking Detections 4 | . 4 . . Full Trace Events 1 | . 1 . . Feedback Events . | . . . . Feedback Blocked . | . . . . Robot Schematics Acquired . | . . . . Robots Built . | . . . . Matter . | . . . . Time . | . . . . Total Robot Build Rating . | . . . . Part Schematics Acquired . | . . . . Parts Built . | . . . . Matter . | . . . . Time . | . . . . Total Part Build Rating . | . . . . Parts Repaired . | . . . . Time . | . . . . Parts Recycled . | . . . . Recycled Matter . | . . . . Retrieved Matter . | . . . . Retrieved Components . | . . . . Parts Scanalyzed . | . . . . Part Schematics Acquired . | . . . . Parts Damaged . | . . . . Bothacking | -11 -10 -10 -10 ------------ Run | Scr Mat Min Exi Used RIF Installer . | . . . . Robots Hacked . | . . . . Non-combat . | . . . . Combat . | . . . . Robot Hacks Applied . | . . . . Relay Couplers Released . | . . . . Robots Rewired . | . . . . Allies Hacked . | . . . . Hacks Repelled . | . . . . Allies | -11 -10 -10 -10 -------- Run | Scr Mat Min Exi Total Allies . | . . . . Largest Group . | . . . . Highest-Rated Group . | . . . . Highest-Rated Ally . | . . . . Total Orders . | . . . . Ally Attacks . | . . . . Total Damage . | . . . . Kills . | . . . . Allies Corrupted . | . . . . Allies Melted . | . . . . Intel | -11 -10 -10 -10 ------- Run | Scr Mat Min Exi Robot Analysis Total . | . . . . Derelict Logs Recovered 2 | . . 2 . Drone Launches . | . . . . Drone Recoveries . | . . . . Exploration | -11 -10 -10 -10 ------------- Run | Scr Mat Min Exi Turns Passed 2771 | 90 1189 1146 346 Spaces Moved 1572 | 48 574 649 301 Core 4 | 2 . 2 . Treads 1037 | 46 574 417 . Legs . | . . . . Wheels 482 | . . 181 301 Hover . | . . . . Flight 49 | . . 49 . Fastest Speed 50 | 50 160 90 100 Average Speed 146 | 155 160 154 100 Slowest Speed 360 | 160 180 360 100 Overloaded Moves . | . . . . Propulsion Burnouts . | . . . . Robots Hopped . | . . . . Cave-ins Triggered 1 | . . . 1 Exploration Rate (%) 60 | 4 70 99 70 Regions Visited 3 Branch Regions 2 Pre-discovered Areas 2 | . . 1 1 Known Exits Taken 1 | . 1 . . Unknown Exits Taken 2 | 1 . 1 . Scrap Searched 1 | . . 1 . Spaces Dug 4 | . . . 4 Terrain Destroyed 5 | . . . 5 Melee . | . . . . Projectile 5 | . . . 5 AOE . | . . . . Actions | -11 -10 -10 -10 --------- Run | Scr Mat Min Exi Total 1823 | 58 715 723 327 Wait 63 | . 25 20 18 Move 1568 | 47 573 648 300 Hop . | . . . . Pick Up 15 | 2 13 . . Fast Attach 23 | 6 9 7 1 Attach 1 | . . 1 . Detach . | . . . . Swap 10 | . 8 1 1 Drop 24 | . 18 5 1 Fire 106 | 3 65 32 6 Melee . | . . . . Ram 3 | . . 3 . Kick . | . . . . Crush 10 | . 4 6 . Escape Stasis . | . . . . Rewire . | . . . . Trap . | . . . . Miscellaneous . | . . . . Route ------- -11/Scrapyard -10/Materials (discovered 3 exits: [*Mat x2] / *Min) -10/Mines (discovered 3 exits: [*Mat x2] / *Exi) -10/Exiles (discovered 1 exit: [*Min]) History --------- Turn | Location | Event 6 | -11/Scrapyard | Discovered new exit (range 16) 91 | -11/Scrapyard | Entered Materials 336 | -10/Materials | Build established: Mutant 545 | -10/Materials | Discovered new exit (range 14) 905 | -10/Materials | Discovered new exit (range 13) 908 | -10/Materials | Identified exit to Mines 1033 | -10/Materials | Discovered new exit (range 14) 1280 | -10/Materials | Entered Mines 1336 | -10/Mines | Met a Derelict bent on vengeance 1341 | -10/Mines | Learned location of Zion (-7) 1413 | -10/Mines | Discovered new exit (range 10) 1572 | -10/Mines | Deemed a non-threat by the Exiles lab entrance 1574 | -10/Mines | Discovered new exit (range 5) 1743 | -10/Mines | Discovered new exit (range 7) 2104 | -10/Mines | Core integrity fell below 50% 2157 | -10/Mines | Lost 4 parts (1p1n2w) 2426 | -10/Mines | Entered Exiles 2426 | -10/Exiles | Found Exiles lab destroyed 2598 | -10/Exiles | Discovered new exit (range 14) 2772 | -10/Exiles | Crushed by falling debris 2772 | -10/Exiles | Smashed by cave-in Last Messages --------------- 02562_ Connecting with EX-Message Board... 02562_ Current location identified: Exiles >>Record "MSG001714-01*" PINNED - TO ALL TESTERS: Stay away from Zion. Imprinter means us harm and is serious about it. World map confirmed: -7/Zion. >>Record "MSG001873-01*" PINNED - Anyone passing by a Warlord outpost feel free to stop in for assistance. Of course they lose outposts like a wild Derelict loses bolts, but one of the latest major bases seems to be at about -5 or -4, somewhere out beyond the Upper Caves. 02598_ EXIT=FOUND 02686_ Connecting with BIN's Terminal... 02719_ Connecting with EX-Vault Access... 02772_ The unstable cave ceiling collapses. 02772_ Crushed by falling debris. 02772_ Mining Laser destroyed. 02772_ System corrupted by crushing effect (+3). 02772_ EM Pulse Gun destroyed. 02772_ System corrupted by crushing effect (+2). Map ----- +----------------------------------------------------+ | | | | | | | | | | | | | | | | | | | | | | | | | | | | | | | | | | | | | | | ?????????????????????????????????????????????????? | | ?????????????????????????????????????????????????? | | ?????????????????????????????????????????????????? | | ?????????????????????????###?????????????????????? | | ?????????????????????????# #?????????????????????? | | ?????????????????######### #?????????????????????? | | ?????????????????#X aa ;@##?????????????????????? | | ?????????????????## a a # #??????????????????????? | | ??????????????????# a ###??????????????????????? | | ??????????????????#a #???#????????????????????? | | ??????????????????# #??"""""?????????????????? | | ??????????????????# ## """?????????????????? | | ??????????????????# X""?????????????????? | | ??????????????????# ## """?????????????????? | | ????????????####??# #??"""""?????????????????? | | ???????????""""""?# #???###??????????????????? | | ???????????""" ## #????????????????????????? | | ??????????#""X #????????????????????????? | | ??????????#" #????????????????????????? | | ??????????#" ## #????????????????????????? | | ??????????#" ?# #?#########??????????????? | | ?????????? ###??# #?#"""""""#??????????????? | | ????????? ??????# #?#"""""""#??????????????? | | ?????????? ???????# ###" """#??????????????? | | ?????????????????## ## ""#??????????????? | | ?????????????????#" ""#??????????????? | | ?????????????????#" "#??????????????? | | ?????????????????#" "#??????????????? | | ?????????????????# "#??????????????? | | ????###??????????# ""#??????????????? | | ???? """????????#" """##?????????????? | +----------------------------------------------------+ Best States ------------- Heat Dissipation 35 Energy Generation 10 Energy Capacity 250 Matter Stores 300 Matter Capacity 300 Sight Range 16 Terrain Scan Density 10 Armor Coverage 225 Core Shielding 20 Evasion (%) 42 Recoil Reduction 2 Defensive Hacking 11 Item Schematics ----------------- None Robot Schematics ------------------ None Fabricated ------------ Nothing Alien Tech Used ----------------- None Achievements -------------- None Challenges ------------ None Game ------ Seed CloakingSupersonicGuard Manual? 0 Play Time 00:26:23 Cumulative 22.6 hours Start 2020.09.03 @ 19:15:32 End 2020.09.03 @ 19:44:50 Sessions 1 Manual Loads 0 Difficulty Rogue Special Mode None Game No. 17 Rogue 17 Adventurer 0 Explorer 0 Win Type - Total 0 Types 0/0/0/0/0/0/0 Lore% 16 Gallery% 23 Achievement% 17 Wizard Run 0 Options --------- ASCII 0 Keyboard 0 Movement Mouse Keybinds 0 Fullscreen 1 Font 18/SmallcapsGlow Map View 76x50 Tactical HUD 1 Map Filters NONE Filters NONE Steam 1 RUN: 9630b942-ffba-4307-95a9-5de4fcfa4662